fUST/lending_fUST_20251020
["ID","MTS","AMOUNT","RATE_DAILY","PERIOD"]
[391906845,1760973051761,-151.0,0.00033944,30]
[391906846,1760973051771,-151.0,0.00033944,30]
[391906847,1760973051781,-151.0,0.00033944,30]
[391906848,1760973051790,-151.0,0.00033944,30]
[391906849,1760973051799,-415.275717,0.00033944,15]
[391906850,1760973051809,-415.275717,0.00033944,15]
[391906851,1760973051821,-415.275717,0.00033944,15]
[391906852,1760973051830,-415.275717,0.00033944,15]
[391906853,1760973051840,-151.0,0.00033944,30]
[391906854,1760973051849,-501.806734,0.00033944,30]
[391906855,1760973051858,-151.0,0.00033944,30]
[391906856,1760973051868,-501.806734,0.00033944,30]
[391906857,1760973051878,-151.0,0.00033944,30]
[391906858,1760973051975,-151.0,0.00033944,30]
[391906859,1760973051987,-501.806734,0.00033944,30]
[391906860,1760973051996,-501.806734,0.00033944,30]
[391906861,1760973052007,-151.0,0.00033944,30]
[391906862,1760973052018,-1090.923273,0.00033944,30]
[391906863,1760973052029,-151.0,0.00033944,2]
[391906864,1760973052039,-1090.923273,0.00033944,30]
[391906865,1760973052050,-1090.923273,0.00033944,30]
[391906866,1760973052059,-151.0,0.00033944,30]
[391906867,1760973052069,-1090.923273,0.00033944,30]
[391906868,1760973052080,-151.0,0.00033944,30]
[391906869,1760973052089,-151.0,0.00033944,30]
[391906870,1760973052098,-151.0,0.00033944,30]
[391906871,1760973052108,-151.0,0.00033944,30]
[391906872,1760973052117,-151.0,0.00033944,30]
[391906873,1760973052126,-151.0,0.00033944,30]
[391906874,1760973052136,-151.0,0.00033944,30]
[391906875,1760973052146,-151.0,0.00033944,30]
[391906876,1760973052155,-151.0,0.00033944,30]
[391906877,1760973052165,-151.0,0.00033944,30]
[391906878,1760973052174,-151.0,0.00033944,30]
[391906879,1760973052183,-151.0,0.00033944,30]
[391906880,1760973052193,-151.0,0.00033944,30]
[391906881,1760973052202,-1823.142174,0.00033944,30]
[391906882,1760973052211,-1823.142174,0.00033944,30]
[391906883,1760973052221,-1823.142174,0.00033944,30]
[391906884,1760973052230,-1823.142174,0.00033944,30]
[391906885,1760973052239,-1823.142174,0.00033944,30]
[391906886,1760973052249,-1823.142174,0.00033944,30]
[391906887,1760973052259,-1823.142174,0.00033944,30]
[391906888,1760973052268,-1823.14218,0.00033944,30]
[391906889,1760973052277,-151.0,0.00033944,30]
[391906890,1760973052287,-151.0,0.00033944,30]
[391906891,1760973052296,-151.0,0.00033944,30]
[391906892,1760973052305,-151.0,0.00033944,30]
[391906893,1760973052315,-151.0,0.00033944,30]
[391906894,1760973052324,-151.0,0.00033944,30]
[391906895,1760973052335,-180.969693,0.00033944,30]
[391906896,1760973052344,-180.969693,0.00033944,30]
[391906897,1760973052353,-180.969693,0.00033944,30]
[391906898,1760973052363,-180.969693,0.00033944,30]
[391906899,1760973052372,-180.969693,0.00033944,30]
[391906900,1760973052382,-180.969693,0.00033944,30]
[391906901,1760973052392,-180.969693,0.00033944,30]
[391906902,1760973052401,-180.969687,0.00033944,30]
[391906903,1760973052410,-151.0,0.00033944,30]
[391906904,1760973052420,-151.0,0.00033944,30]
[391906905,1760973052430,-151.0,0.00033944,30]
[391906906,1760973052439,-151.0,0.00033944,30]
[391906907,1760973052449,-1297.143153,0.00033944,30]
[391906908,1760973052458,-151.0,0.00033944,30]
[391906909,1760973052467,-151.0,0.00033944,30]
[391906910,1760973052476,-151.0,0.00033944,30]
[391906911,1760973052486,-831.41234,0.00033944,30]
[391906912,1760973052495,-1297.143153,0.00033944,30]
[391906913,1760973052504,-1474.53122,0.00033944,30]
[391906914,1760973052514,-831.41234,0.00033944,30]
[391906915,1760973052523,-1297.143153,0.00033944,30]
[391906916,1760973052532,-1474.53122,0.00033944,30]
[391906917,1760973052541,-831.41234,0.00033944,30]
[391906918,1760973052550,-1297.14316,0.00033944,30]
[391906919,1760973052560,-151.0,0.00033944,30]
[391906920,1760973052569,-831.412332,0.00033944,30]
[391906921,1760973052579,-181.689718,0.00033944,30]
[391906922,1760973052589,-151.0,0.00033944,30]
[391906923,1760973052598,-1474.53122,0.00033944,30]
[391906924,1760973052607,-151.0,0.00033944,30]
[391906925,1760973052618,-1474.531225,0.00033944,30]
[391906926,1760973052634,-219.803885,0.00033944,30]
[391906927,1760973052653,-151.0,0.00033944,30]
[391906928,1760973052673,-219.803885,0.00033944,30]
[391906929,1760973052693,-219.803885,0.00033944,30]
[391906930,1760973052715,-219.803883,0.00033944,30]
[391906931,1760973052731,-151.0,0.00033944,30]
[391906932,1760973052749,-151.0,0.00033944,30]
[391906933,1760973052763,-151.0,0.00033944,30]
[391906934,1760973052780,-151.0,0.00033944,30]
[391906935,1760973052799,-151.0,0.00033944,30]
[391906936,1760973052818,-195.670966,0.00033944,30]
[391906937,1760973052831,-195.670966,0.00033944,30]
[391906938,1760973052850,-195.670966,0.00033944,30]
[391906939,1760973052864,-553.943476,0.00033944,30]
[391906940,1760973052880,-195.670956,0.00033944,30]
[391906941,1760973052894,-553.943476,0.00033944,30]
[391906942,1760973052910,-553.943476,0.00033944,30]
[391906943,1760973052924,-553.943481,0.00033944,30]
[391906944,1760973052939,-177.750339,0.00033944,30]
[391906945,1760973052954,-177.750339,0.00033944,30]
[391906946,1760973052987,-177.750339,0.00033944,30]
[391906947,1760973053012,-177.750332,0.00033944,30]
[391906948,1760973053037,-151.0,0.00033944,30]
[391906949,1760973053059,-151.0,0.00033944,30]
[391906950,1760973053078,-151.0,0.00033944,30]
[391906951,1760973053097,-151.0,0.00033944,30]
[391906952,1760973053115,-151.0,0.00033944,30]
[391906953,1760973053135,-542.894894,0.00033944,30]
[391906954,1760973053151,-151.0,0.00033944,30]
[391906955,1760973053168,-542.894894,0.00033944,30]
[391906956,1760973053187,-542.894894,0.00033944,30]
[391906957,1760973053204,-542.894885,0.00033944,30]
[391906958,1760973053219,-151.0,0.00033944,30]
[391906959,1760973053236,-10000.0,0.00033944,30]
[391906960,1760973053253,-10000.0,0.00033944,30]
[391906961,1760973053273,-10000.0,0.00033944,30]
[391906962,1760973053289,-10000.0,0.00033944,30]
[391906963,1760973053305,-10000.0,0.00033944,30]
[391906964,1760973053320,-10000.0,0.00033944,30]
[391906965,1760973053336,-10000.0,0.00033944,30]
[391906966,1760973053352,-10000.0,0.00033944,30]
[391906967,1760973053368,-10000.0,0.00033944,30]
[391906968,1760973053384,-10000.0,0.00033944,30]
[391906969,1760973053400,-10000.0,0.00033944,30]
[391906970,1760973053417,-10000.0,0.00033944,30]
[391906971,1760973053432,-2466.168102,0.00033944,30]
[391906972,1760973053449,-151.0,0.00033944,30]
[391906973,1760973053465,-632.0,0.00033985,2]
[391906974,1760973053481,-982.0,0.00033985,2]
[391906975,1760973053497,-2163.0,0.00033985,2]
[391906976,1760973053513,-411.0,0.00033985,2]
[391906977,1760973053528,-151.0,0.00033993,30]
[391906978,1760973053543,-151.0,0.00033993,30]
[391906979,1760973053558,-151.0,0.00033993,30]
[391906980,1760973053575,-151.0,0.00033993,30]
[391906981,1760973053590,-151.0,0.00033993,30]
[391906982,1760973053607,-151.0,0.00033993,30]
[391906983,1760973053626,-287.026693,0.00033993,30]
[391906984,1760973053641,-211.958132,0.00033993,30]
[391906985,1760973053657,-211.958132,0.00033993,30]
[391906986,1760973053671,-211.958132,0.00033993,30]
[391906987,1760973053689,-1483.852699,0.00033993,30]
[391906988,1760973053704,-211.958124,0.00033993,30]
[391906989,1760973053720,-1483.852699,0.00033993,30]
[391906990,1760973053736,-1483.852699,0.00033993,30]
[391906991,1760973053877,-1483.852706,0.00033993,30]
[391906992,1760973053923,-150.0,0.00033993,30]
[391906993,1760973053933,-324.439999,0.00033993,2]
[391906994,1760973053944,-281.0,0.00033993,120]
[391906995,1760973053954,-286.0,0.00033993,120]
[391906996,1760973053964,-691058.59996706,0.00033993,30]
[391906997,1760973054828,-151.0,0.000255,7]
[391906998,1760973054838,-151.0,0.000255,7]
[391906999,1760973054848,-54.31469195,0.00026,7]
[391907000,1760973054860,-278.88597525,0.00026,7]
[391907001,1760973054931,-101.8417858,0.00026,7]
[391907002,1760973054941,-151.0,0.00026,7]
[391907003,1760973054951,-151.0,0.00026,7]
[391907004,1760973054960,-435.042453,0.000268,7]
[391907005,1760973054971,-151.0,0.000268,7]
[391907006,1760973054981,-294.16336187,0.0002831,2]
[391907007,1760973054991,-435.042453,0.00032252,30]
[391907008,1760973055000,-324.678352,0.00032922,7]
[391907009,1760973055010,-151.0,0.00032922,30]
[391907010,1760973055019,-2551.47767002,0.00033993,30]
[391907011,1760973055523,-646.27,0.0002479,10]
[391907012,1760973055532,-256.3267865,0.000255,7]
[391907013,1760973055546,-178.7156665,0.000255,7]
[391907014,1760973055556,-435.042453,0.00026,7]
[391907015,1760973055566,-151.0,0.000268,7]
[391907016,1760973055575,-435.042453,0.000268,7]
[391907017,1760973055585,-157.335631,0.000304,30]
[391907018,1760973055595,-151.0,0.000304,30]
[391907019,1760973055605,-151.0,0.00032922,30]
[391907020,1760973055617,-435.042453,0.000336,30]
[391907021,1760973055627,-1153.60866185,0.00033993,30]
[391907022,1760973055698,-1100.0,0.000337,120]
[391907023,1760973055709,-12465.33103747,0.00033993,30]
[391907024,1760973055720,-225448.27327295,0.00033993,30]
[391907062,1760973554108,5301.83,0.00024,2]
[391907063,1760973554392,5067.17,0.00024,2]
[391907064,1760973682005,500.0,8.219e-05,2]
[391907065,1760973682532,500.0,8.493e-05,2]
[391907066,1760973683039,500.0,8.767e-05,2]
[391907067,1760973683553,500.0,9.041e-05,2]
[391907068,1760973684072,500.0,9.315e-05,2]
[391907069,1760973684608,500.0,9.589e-05,2]
[391907070,1760973685111,500.0,9.863e-05,2]
[391907071,1760973685642,500.0,0.00010137,2]
[391907072,1760973686190,500.0,0.00010411,2]
[391907073,1760973686782,500.0,0.00010685,2]
[391907074,1760973687196,500.0,0.00010959,2]
[391907075,1760973687784,543.5,0.00011233,2]
[391907076,1760973726898,150.0,0.00019186,2]
[391907077,1760973727431,150.0,0.000201,2]
[391907078,1760973727930,153.54,0.00021013,2]
[391907079,1760973728520,204.72,0.00021927,2]
[391907080,1760973729142,255.9,0.00022841,2]
[391907081,1760973729559,307.08,0.00023754,2]
[391907082,1760973807087,150.0,0.00019185,2]
[391907083,1760973807515,150.0,0.00020099,2]
[391907084,1760973808044,150.0,0.00021012,2]
[391907085,1760973808528,181.54,0.00021926,2]
[391907086,1760973808936,226.93,0.00022839,2]
[391907087,1760973810080,272.31,0.00023753,2]
[391907088,1760973883370,150.0,0.00019163,2]
[391907089,1760973883803,150.0,0.00020076,2]
[391907090,1760973884546,150.0,0.00020988,2]
[391907091,1760973884736,150.0,0.00021901,2]
[391907092,1760973885187,154.97,0.00022813,2]
[391907093,1760973885697,185.96,0.00023726,2]
[391907098,1760973957441,150.0,0.0001915,2]
[391907099,1760973957511,150.0,0.00020062,2]
[391907100,1760973957820,172.48,0.00020974,2]
[391907101,1760973958292,229.98,0.00021885,2]
[391907102,1760973958741,287.47,0.00022797,2]
[391907103,1760973959186,344.96,0.00023709,2]
[391907108,1760974016898,189.745467,0.0002368,2]
[391907110,1760974037353,150.0,0.00019141,2]
[391907111,1760974037872,150.0,0.00020052,2]
[391907112,1760974038324,150.0,0.00020964,2]
[391907113,1760974038777,162.02,0.00021875,2]
[391907114,1760974039508,202.52,0.00022787,2]
[391907115,1760974039941,243.03,0.00023698,2]
[391907131,1760974112903,150.0,0.00019159,2]
[391907132,1760974113350,150.0,0.00020071,2]
[391907133,1760974114114,158.09,0.00020984,2]
[391907134,1760974114358,210.78,0.00021896,2]
[391907135,1760974114667,263.48,0.00022808,2]
[391907136,1760974115335,316.17,0.00023721,2]
[391907139,1760974119680,57175.64972938,0.000288,120]
[391907140,1760974152046,680.4824558,0.00023865,2]
[391907142,1760974191950,150.0,0.00019164,2]
[391907143,1760974192393,154.79,0.00020076,2]
[391907144,1760974192824,232.19,0.00020989,2]
[391907145,1760974193265,309.59,0.00021901,2]
[391907146,1760974193689,386.99,0.00022814,2]
[391907147,1760974194135,464.38,0.00023726,2]
[391907236,1760974237913,-150.0,0.000246,2]
[391907239,1760974237928,-2005.86705888,0.000246,2]
[391907241,1760974237943,-200.0,0.000246,2]
[391907243,1760974237957,-541.78,0.00024639,2]
[391907245,1760974237968,-542.77136238,0.00024671,2]
[391907249,1760974237981,-25.22863762,0.00024671,2]
[391907251,1760974237993,-1200.0,0.00024671,2]
[391907254,1760974238007,-300.0,0.00024672,2]
[391907256,1760974238023,-500.0,0.00024673,2]
[391907258,1760974238035,-170.79273371,0.00024673,2]
[391907260,1760974238047,-500.0,0.00024673,2]
[391907263,1760974238059,-379.77643342,0.00024673,2]
[391907265,1760974238072,-500.0,0.00024673,2]
[391907267,1760974238084,-500.0,0.00024673,2]
[391907269,1760974238096,-500.0,0.00024673,2]
[391907270,1760974238113,-500.0,0.00024673,2]
[391907271,1760974238124,-500.0,0.00024673,2]
[391907272,1760974238137,-500.0,0.00024673,2]
[391907273,1760974238149,-180.0,0.00024673,2]
[391907274,1760974238161,-500.0,0.00024673,2]
[391907275,1760974238173,-169.06086618,0.00024673,2]
[391907276,1760974238189,-500.0,0.00024673,2]
[391907277,1760974238202,-500.0,0.00024673,2]
[391907278,1760974238215,-500.0,0.00024673,2]
[391907279,1760974238228,-30942.03142139,0.00024673,2]
[391907280,1760974238240,-317.86,0.00024687,3]
[391907281,1760974238254,-332.21,0.00024687,3]
[391907282,1760974238269,-166.1,0.00024687,3]
[391907283,1760974238281,-487.02,0.00024687,3]
[391907284,1760974238293,-243.51,0.00024687,3]
[391907285,1760974238306,-730.54,0.00024687,3]
[391907286,1760974238319,-586.06,0.00024687,3]
[391907287,1760974238331,-293.03,0.00024687,3]
[391907288,1760974238343,-879.13,0.00024687,3]
[391907289,1760974238355,-654.24,0.00024687,10]
[391907290,1760974238367,-293.4696151,0.00024696,2]
[391907291,1760974238379,-379.99981565,0.00024696,2]
[391907292,1760974238392,-241.26834262,0.00024696,2]
[391907293,1760974238404,-500.0,0.00024696,2]
[391907294,1760974238416,-500.0,0.00024696,2]
[391907295,1760974238428,-500.0,0.00024696,2]
[391907296,1760974238440,-392.34168407,0.00024696,2]
[391907297,1760974238452,-500.0,0.00024696,2]
[391907298,1760974238464,-193.92749866,0.00024696,2]
[391907299,1760974238477,-500.0,0.00024696,2]
[391907300,1760974238490,-482.92518408,0.00024696,2]
[391907301,1760974238504,-500.0,0.00024696,2]
[391907302,1760974238516,-500.0,0.00024696,2]
[391907303,1760974238530,-500.0,0.00024696,2]
[391907304,1760974238542,-500.0,0.00024696,2]
[391907306,1760974238554,-500.0,0.00024696,2]
[391907307,1760974238566,-500.0,0.00024696,2]
[391907308,1760974238579,-500.0,0.00024696,2]
[391907310,1760974238591,-500.0,0.00024696,2]
[391907312,1760974238603,-500.0,0.00024696,2]
[391907314,1760974238615,-500.0,0.00024696,2]
[391907317,1760974238627,-500.0,0.00024696,2]
[391907319,1760974238640,-500.0,0.00024696,2]
[391907321,1760974238652,-204.37561128,0.00024696,2]
[391907324,1760974238664,-500.0,0.00024696,2]
[391907326,1760974238677,-500.0,0.00024696,2]
[391907328,1760974238689,-462.81039703,0.00024696,2]
[391907330,1760974238701,-500.0,0.00024696,2]
[391907333,1760974238713,-500.0,0.00024696,2]
[391907335,1760974238726,-500.0,0.00024696,2]
[391907337,1760974238738,-500.0,0.00024696,2]
[391907340,1760974238751,-500.0,0.00024696,2]
[391907342,1760974238764,-500.0,0.00024696,2]
[391907344,1760974238777,-500.0,0.00024696,2]
[391907347,1760974238789,-500.0,0.00024696,2]
[391907349,1760974238801,-286.71672956,0.00024696,2]
[391907351,1760974238813,-500.0,0.00024696,2]
[391907353,1760974238824,-500.0,0.00024696,2]
[391907356,1760974238839,-500.0,0.00024696,2]
[391907358,1760974238851,-500.0,0.00024696,2]
[391907360,1760974238863,-500.0,0.00024696,2]
[391907363,1760974238875,-436.10521555,0.00024696,2]
[391907365,1760974238888,-500.0,0.00024696,2]
[391907367,1760974238899,-435.5683914,0.00024696,2]
[391907369,1760974238911,-249.70609062,0.00024696,2]
[391907371,1760974238923,-500.0,0.00024696,2]
[391907374,1760974238934,-370000.0,0.00024697,2]
[391907376,1760974238945,-22529.4,0.000247,7]
[391907378,1760974238958,-500.0,0.00024789,2]
[391907379,1760974238970,-500.0,0.00024797,2]
[391907382,1760974238983,-500.0,0.00024797,2]
[391907384,1760974238994,-500.0,0.00024798,2]
[391907386,1760974239008,-500.0,0.00024799,2]
[391907388,1760974239020,-500.0,0.00024799,2]
[391907390,1760974239032,-500.0,0.00024799,2]
[391907391,1760974239045,-500.0,0.00024799,2]
[391907392,1760974239058,-500.0,0.00024799,2]
[391907393,1760974239070,-500.0,0.00024799,2]
[391907394,1760974239083,-500.0,0.00024799,2]
[391907395,1760974239095,-500.0,0.00024799,2]
[391907396,1760974239108,-500.0,0.00024799,2]
[391907397,1760974239121,-500.0,0.00024799,2]
[391907398,1760974239134,-535.64,0.00024799,2]
[391907399,1760974239147,-559.63839702,0.00024873,2]
[391907400,1760974239159,-500.0,0.00024873,2]
[391907401,1760974239172,-500.0,0.00024873,2]
[391907402,1760974239187,-574.34399189,0.00024873,2]
[391907403,1760974239199,-500.0,0.00024873,2]
[391907404,1760974239211,-500.0,0.00024873,2]
[391907405,1760974239224,-160.05671649,0.00024873,2]
[391907406,1760974239238,-285735.343217,0.000249,2]
[391907407,1760974239250,-500.0,0.00024973,2]
[391907408,1760974239264,-597.40411846,0.00024973,2]
[391907409,1760974239276,-500.0,0.00024973,2]
[391907410,1760974239288,-639.47144588,0.00024973,2]
[391907411,1760974239300,-158.45551666,0.00024973,2]
[391907412,1760974239311,-500.0,0.00024973,2]
[391907413,1760974239323,-513.90856149,0.00024973,2]
[391907414,1760974239335,-502.79717437,0.00024973,2]
[391907415,1760974239346,-500.0,0.00024973,2]
[391907416,1760974239357,-160.04802683,0.00024973,2]
[391907417,1760974239370,-502.31522138,0.00024973,2]
[391907418,1760974239381,-500.0,0.00024973,2]
[391907419,1760974239393,-500.0,0.00024973,2]
[391907420,1760974239405,-504.37533289,0.00024973,2]
[391907421,1760974239417,-500.0,0.00024973,2]
[391907422,1760974239428,-500.0,0.00024973,2]
[391907423,1760974239439,-253.14378094,0.00024973,2]
[391907424,1760974239450,-500.0,0.00024973,2]
[391907425,1760974239463,-500.0,0.00024973,2]
[391907426,1760974239474,-435.58700581,0.00024973,2]
[391907427,1760974239483,-503.3121768,0.00024973,2]
[391907428,1760974239493,-500.0,0.00024973,2]
[391907429,1760974239503,-54988.03798701,0.0002499,2]
[391907430,1760974239513,-192.676518,0.00025,2]
[391907431,1760974239523,-159.733832,0.00025,2]
[391907432,1760974239532,-10258.07975623,0.00025,3]
[391907433,1760974239542,-12563.95928166,0.00025,2]
[391907434,1760974239552,-325.0,0.00025023,2]
[391907435,1760974239562,-2005.86705887,0.00025076,2]
[391907436,1760974239572,-172.5,0.000252,2]
[391907437,1760974239582,-199.0,0.00025205,7]
[391907438,1760974239592,-1000.0,0.00025221,2]
[391907439,1760974239601,-1000.0,0.00025221,2]
[391907455,1760974239918,-1000.0,0.00025221,2]
[391907458,1760974239945,-1000.0,0.00025221,2]
[391907461,1760974239958,-614.73920808,0.00025221,2]
[391907463,1760974239968,-1000.0,0.00025221,2]
[391907465,1760974239977,-1000.0,0.00025221,2]
[391907467,1760974239988,-512.86416693,0.00025221,2]
[391907469,1760974239997,-1000.0,0.00025221,2]
[391907471,1760974240007,-1000.0,0.00025221,2]
[391907472,1760974240017,-1000.0,0.00025221,2]
[391907474,1760974240027,-192.676518,0.00025322,2]
[391907476,1760974240037,-159.733832,0.00025322,2]
[391907478,1760974240046,-570.82366199,0.00025421,2]
[391907480,1760974240056,-1002.13746908,0.00025421,2]
[391907482,1760974240066,-835.50537354,0.00025421,2]
[391907484,1760974240075,-972.36268032,0.00025421,2]
[391907486,1760974240084,-199.0,0.00025479,8]
[391907488,1760974240094,-200.0,0.000255,7]
[391907490,1760974240103,-1000.0,0.00025521,2]
[391907492,1760974240112,-1000.0,0.00025521,2]
[391907494,1760974240122,-503.62179262,0.00025521,2]
[391907496,1760974240131,-1000.0,0.00025521,2]
[391907498,1760974240140,-1010.21036092,0.00025521,2]
[391907500,1760974240150,-500.0,0.00025521,2]
[391907502,1760974240159,-1000.0,0.00025521,2]
[391907504,1760974240169,-1000.0,0.00025521,2]
[391907506,1760974240179,-1000.0,0.00025521,2]
[391907508,1760974240192,-2005.86705887,0.00025552,2]
[391907510,1760974240201,-619.18,0.00025552,2]
[391907512,1760974240210,-2192.236578,0.00025643,2]
[391907514,1760974240219,-192.676518,0.00025643,2]
[391907516,1760974240230,-159.733832,0.00025643,2]
[391907518,1760974240239,-1500.0,0.00025768,2]
[391907520,1760974240248,-1500.0,0.00025768,2]
[391907522,1760974240260,-1500.0,0.00025768,2]
[391907524,1760974240269,-1350.70958409,0.00025768,2]
[391907526,1760974240279,-1500.0,0.00025768,2]
[391907528,1760974240288,-1500.0,0.00025768,2]
[391907530,1760974240298,-1500.0,0.00025768,2]
[391907532,1760974240306,-1138.35642691,0.00025768,2]
[391907534,1760974240315,-1500.0,0.00025768,2]
[391907536,1760974240324,-195.0,0.000258,2]
[391907537,1760974240334,-156.588327,0.00025965,2]
[391907538,1760974240344,-192.676518,0.00025965,2]
[391907539,1760974240353,-159.733832,0.00025965,2]
[391907540,1760974240363,-60537.49489581,0.00026,30]
[391907541,1760974240372,-22529.4,0.00026,7]
[391907542,1760974240382,-2005.86705887,0.00026028,2]
[391907543,1760974240392,-664.42,0.00026057,3]
[391907544,1760974240401,-332.2,0.00026057,3]
[391907545,1760974240410,-974.04,0.00026057,3]
[391907546,1760974240419,-487.02,0.00026057,3]
[391907547,1760974240428,-1172.12,0.00026057,3]
[391907548,1760974240438,-586.06,0.00026057,3]
[391907549,1760974240447,-500.0,0.00026067,2]
[391907550,1760974240456,-1500.0,0.00026068,2]
[391907551,1760974240465,-1015.02448864,0.00026068,2]
[391907552,1760974240475,-560.91516174,0.00026068,2]
[391907553,1760974240484,-1500.0,0.00026068,2]
[391907554,1760974240494,-1500.0,0.00026068,2]
[391907555,1760974240503,-1530.89254654,0.00026068,2]
[391907556,1760974240513,-192.86864001,0.0002616,2]
[391907557,1760974240523,-150.0,0.00026273,2]
[391907558,1760974240533,-150.0,0.00026273,2]
[391907560,1760974240542,-156.588327,0.00026287,2]
[391907562,1760974240551,-192.676518,0.00026287,2]
[391907563,1760974240560,-159.733832,0.00026287,2]
[391907565,1760974240571,-125919.82139129,0.000263,3]
[391907568,1760974240581,-1000.0,0.000263,2]
[391907570,1760974240590,-1000.0,0.000263,2]
[391907571,1760974240600,-1000.0,0.000263,2]
[391907573,1760974240609,-1000.0,0.000263,2]
[391907575,1760974240619,-1000.0,0.000263,2]
[391907577,1760974240630,-1000.0,0.000263,2]
[391907580,1760974240641,-1000.0,0.000263,2]
[391907582,1760974240652,-2000.0,0.00026316,2]
[391907584,1760974240660,-1001.31810643,0.00026316,2]
[391907585,1760974240671,-1835.9880288,0.00026316,2]
[391907587,1760974240680,-2000.0,0.00026316,2]
[391907589,1760974240690,-2000.0,0.00026316,2]
[391907591,1760974240700,-2000.0,0.00026316,2]
[391907593,1760974240710,-217.5,0.000264,2]
[391907595,1760974240720,-696.57,0.00026464,2]
[391907597,1760974240729,-500.0,0.000265,2]
[391907599,1760974240740,-125274.91254716,0.000265,3]
[391907601,1760974240749,-2005.86705887,0.00026504,2]
[391907603,1760974240760,-160.0,0.00026595,2]
[391907605,1760974240770,-1603058.73364244,0.000266,3]
[391907607,1760974240779,-1000.0,0.00026615,2]
[391907609,1760974240789,-2000.0,0.00026616,2]
[391907611,1760974240798,-790.63311626,0.00026616,2]
[391907613,1760974240808,-2000.0,0.00026616,2]
[391907615,1760974240817,-500.0,0.0002666,5]
[391907617,1760974240827,-500.0,0.0002666,5]
[391907619,1760974240836,-500.0,0.0002666,5]
[391907621,1760974240846,-500.0,0.0002666,5]
[391907623,1760974240855,-500.0,0.0002666,5]
[391907625,1760974240864,-420.0,0.00026737,2]
[391907627,1760974240874,-300.0,0.00026821,2]
[391907629,1760974240883,-250.0,0.00026821,2]
[391907631,1760974240892,-1429.0,0.00026857,2]
[391907633,1760974240902,-2500.0,0.00026864,2]
[391907635,1760974240911,-2500.0,0.00026864,2]
[391907637,1760974240921,-500.0,0.00026864,2]
[391907639,1760974240931,-2524.87285329,0.00026864,2]
[391907641,1760974240941,-192.676518,0.000269,20]
[391907643,1760974240951,-159.733832,0.000269,20]
[391907645,1760974240960,-1000800.93422385,0.00027,3]
[391907647,1760974240970,-151.0,0.00027,7]
[391907649,1760974240980,-151.0,0.00027,7]
[391907650,1760974240990,-151.0,0.00027,7]
[391907652,1760974241000,-151.0,0.00027,7]
[391907655,1760974241010,-151.0,0.00027,7]
[391907657,1760974241020,-151.0,0.00027,7]
[391907658,1760974241029,-415.275717,0.00027,7]
[391907661,1760974241039,-415.275717,0.00027,7]
[391907663,1760974241048,-415.275717,0.00027,7]
[391907664,1760974241058,-415.275717,0.00027,7]
[391907666,1760974241068,-501.806734,0.00027,7]
[391907668,1760974241077,-501.806734,0.00027,7]
[391907670,1760974241086,-501.806734,0.00027,7]
[391907672,1760974241095,-501.806734,0.00027,7]
[391907674,1760974241105,-151.0,0.00027,2]